Workbook

Sheet Balance Sheet
A2: CONTOSO, LTD
A6: BALANCE SHEET | F6: Stated in 000s, for the period ending:
F7: 2013-12-31
B10: Current Ratio [A/B] | F10: Working Capital [A-B]
B11: =IFERROR(A/B,"-") -> 0.45 | F11: =IFERROR((A-B)*1000,"-") -> (58,750,000)
B12: Quick Ratio [(A-C)/B] | F12: Debt-to-Equity Ratio [(G+H)/F]
B13: =IFERROR((A-C_)/B,"-") -> 0.29 | F13: =IFERROR((G+H)/F,"-") -> 0.42
B14: Cash Ratio [D/B] | F14: Debt Ratio [(G+H)/E]
B15: =IFERROR(D/B,"-") -> 0.05 | F15: =IFERROR((G+H)/E,"-") -> 0.26
B18: Assets | D18: % of Assets | F18: Liabilities & Owners' Equity | H18: % of Assets
B20: Current Assets | F20: Current Liabilities
B21: Cash and cash equivalents [D] | C21: 5,000 | D21: =IFERROR(CurrentAssets[[#This Row],[ ]]/E,"-") -> 0.8% | F21: Loans payable and current portion long-term debt [H] | G21: 75,000 | H21: =IFERROR(CurrentLiabilities[[#This Row],[ ]]/E,"-") -> 11.6%
B22: Short-term investments | C22: 250 | D22: =IFERROR(CurrentAssets[[#This Row],[ ]]/E,"-") -> 0.0% | F22: Accounts payable and accrued expenses | G22: 14,500 | H22: =IFERROR(CurrentLiabilities[[#This Row],[ ]]/E,"-") -> 2.3%
B23: Accounts receivable [I] | C23: 20,000 | D23: =IFERROR(CurrentAssets[[#This Row],[ ]]/E,"-") -> 3.1% | F23: Income taxes payable | G23: 10,000 | H23: =IFERROR(CurrentLiabilities[[#This Row],[ ]]/E,"-") -> 1.6%
B24: Inventories [C] | C24: 18,000 | D24: =IFERROR(CurrentAssets[[#This Row],[ ]]/E,"-") -> 2.8% | F24: Accrued retirement and profit-sharing contributions | G24: 8,000 | H24: =IFERROR(CurrentLiabilities[[#This Row],[ ]]/E,"-") -> 1.2%
B25: Deferred income taxes | C25: 3,500 | D25: =IFERROR(CurrentAssets[[#This Row],[ ]]/E,"-") -> 0.5% | F25: Total [B] | G25: =B -> 107,500 | H25: =SUBTOTAL(109,CurrentLiabilities[[ ]]) -> 16.7%
B26: Prepaid expenses and other current assets | C26: 2,000 | D26: =IFERROR(CurrentAssets[[#This Row],[ ]]/E,"-") -> 0.3%
B27: Total [A] | C27: =A -> 48,750 | D27: =SUBTOTAL(109,CurrentAssets[[ ]]) -> 7.6%
B31: Fixed Assets | F31: Other Liabilities
B32: Property, plant and equipment at cost | C32: 500,000 | D32: =IFERROR(FixedAssets[[#This Row],[ ]]/E,"-") -> 77.6% | F32: Long-term debt [G] | G32: 92,500 | H32: =IFERROR(OtherLiabilities[[#This Row],[ ]]/E,"-") -> 14.4%
B33: Less accumulated depreciation | C33: 27,500 | D33: =IFERROR(FixedAssets[[#This Row],[ ]]/E,"-") -> 4.3% | F33: Accrued retirement costs | G33: 34,000 | H33: =IFERROR(OtherLiabilities[[#This Row],[ ]]/E,"-") -> 5.3%
B34: Total | C34: =SUM(FixedAssets[[ ]]) -> 527,500 | D34: =SUBTOTAL(109,FixedAssets[[ ]]) -> 81.9% | F34: Deferred income taxes | G34: 6,000 | H34: =IFERROR(OtherLiabilities[[#This Row],[ ]]/E,"-") -> 0.9%
F35: Deferred credits and other liabilities | G35: 4,000 | H35: =IFERROR(OtherLiabilities[[#This Row],[ ]]/E,"-") -> 0.6%
F36: Total | G36: =SUM(OtherLiabilities[[ ]]) -> 136,500 | H36: =SUBTOTAL(109,OtherLiabilities[[ ]]) -> 21.2%
B38: Other Assets
B39: Long-term cash investments | C39: 8,000 | D39: =IFERROR(OtherAssets[[#This Row],[ ]]/E,"-") -> 1.2% | F39: Total Liabilities | G39: =SUM(B,OtherLiabilities[[ ]]) -> 244,000 | H39: =IFERROR(G39/E,"-") -> 37.9%
B40: Equity investments | C40: 27,000 | D40: =IFERROR(OtherAssets[[#This Row],[ ]]/E,"-") -> 4.2%
B41: Deferred income taxes | C41: 22,000 | D41: =IFERROR(OtherAssets[[#This Row],[ ]]/E,"-") -> 3.4%
B42: Other assets | C42: 11,000 | D42: =IFERROR(OtherAssets[[#This Row],[ ]]/E,"-") -> 1.7%
B43: Total | C43: =SUM(OtherAssets[[ ]]) -> 68,000 | D43: =IF($C$46=0,"-",C43/$C$46) -> 10.6%
B46: Total Assets [E] | C46: =A+SUM(FixedAssets[[ ]])+SUM(OtherAssets[[ ]]) -> 644,250 | D46: =SUM(CurrentAssets[[ ]],FixedAssets[[ ]],OtherAssets[[ ]]) -> 100.0%
B48: Total Owner Equity [F] | C48: =E-G39 -> 400,250 | D48: =IF($C$46=0,"-",C48/$C$46) -> 62.1%
B49: Total Liabilities + Owner Equity | C49: =G39+F -> 644,250 | D49: =IF($C$46=0,"-",C49/$C$46) -> 100.0%
